fUST/lending_fUST_20250206
["ID","MTS","AMOUNT","RATE_DAILY","PERIOD"]
[351932693,1738848646368,-151.0,0.000139,2]
[351932695,1738848646378,-13262.49839917,0.00013924,2]
[351932696,1738848646388,-500.0,0.00013972,2]
[351932697,1738848646398,-500.0,0.00013972,2]
[351932698,1738848646408,-551.24665482,0.00013972,2]
[351932699,1738848646419,-500.0,0.00013972,2]
[351932700,1738848646429,-500.0,0.00013972,2]
[351932701,1738848646438,-500.0,0.00013972,2]
[351932703,1738848646449,-500.0,0.00013972,2]
[351932704,1738848646459,-500.0,0.00013972,2]
[351932705,1738848646471,-500.0,0.00013972,2]
[351932706,1738848646481,-500.0,0.00013972,2]
[351932707,1738848646503,-500.0,0.00013972,2]
[351932708,1738848646512,-162.63639976,0.00013972,2]
[351932709,1738848646522,-438.19380035,0.00013972,2]
[351932710,1738848646532,-500.0,0.00013972,2]
[351932711,1738848646542,-500.0,0.00013972,2]
[351932712,1738848646552,-500.0,0.00013972,2]
[351932713,1738848646562,-500.0,0.00013972,2]
[351932715,1738848646572,-713.76,0.00013972,2]
[351932717,1738848646582,-500.0,0.00013972,2]
[351932718,1738848646592,-500.0,0.00013972,2]
[351932719,1738848646601,-210.41962728,0.00013972,2]
[351932720,1738848646611,-500.0,0.00013972,2]
[351932721,1738848646620,-636.61,0.00013972,2]
[351932722,1738848646629,-500.0,0.00013972,2]
[351932723,1738848646639,-866.78,0.00013972,2]
[351932724,1738848646649,-500.0,0.00013972,2]
[351932725,1738848646659,-772.05,0.00013972,2]
[351932726,1738848646668,-500.0,0.00013972,2]
[351932727,1738848646677,-500.0,0.00013972,2]
[351932728,1738848646687,-500.0,0.00013972,2]
[351932729,1738848646697,-724.88,0.00013972,2]
[351932730,1738848646706,-500.0,0.00013972,2]
[351932731,1738848646716,-208.65336372,0.00013972,2]
[351932732,1738848646726,-514.68,0.00013972,2]
[351932733,1738848646736,-500.0,0.00013972,2]
[351932734,1738848646746,-1524.57,0.00013972,2]
[351932735,1738848646756,-500.0,0.00013972,2]
[351932736,1738848646766,-500.0,0.00013972,2]
[351932737,1738848646775,-500.0,0.00013972,2]
[351932738,1738848646785,-507.76093265,0.00013972,2]
[351932739,1738848646795,-1631.04,0.00013972,2]
[351932740,1738848646804,-500.0,0.00013972,2]
[351932741,1738848646813,-500.0,0.00013972,2]
[351932742,1738848646823,-500.0,0.00013972,2]
[351932743,1738848646832,-500.0,0.00013972,2]
[351932744,1738848646842,-151.0,0.00013972,2]
[351932745,1738848646852,-151.0,0.00013972,2]
[351932746,1738848646862,-151.0,0.00013972,2]
[351932747,1738848646871,-151.0,0.00013972,2]
[351932748,1738848646881,-572.16,0.00013972,2]
[351932749,1738848646891,-500.0,0.00013972,2]
[351932750,1738848646901,-500.0,0.00013972,2]
[351932751,1738848646911,-592.3,0.00013972,2]
[351932752,1738848646920,-764.5,0.00013972,2]
[351932753,1738848646930,-500.0,0.00013972,2]
[351932754,1738848647134,-151.0,0.00013972,2]
[351932755,1738848647145,-151.0,0.00013972,2]
[351932756,1738848647155,-151.0,0.00013972,2]
[351932757,1738848647165,-1305.69,0.00013972,2]
[351932758,1738848647174,-151.0,0.00013972,2]
[351932759,1738848647184,-151.0,0.00013972,2]
[351932760,1738848647196,-500.0,0.00013972,2]
[351932761,1738848647207,-500.0,0.00013972,2]
[351932762,1738848647216,-1131.9,0.00013972,2]
[351932763,1738848647226,-587.49,0.00013972,2]
[351932764,1738848647239,-500.0,0.00013972,2]
[351932765,1738848647249,-151.0,0.00013972,2]
[351932766,1738848647260,-500.0,0.00013972,2]
[351932767,1738848647274,-151.0,0.00013972,2]
[351932768,1738848647284,-500.0,0.00013972,2]
[351932769,1738848647295,-500.0,0.00013972,2]
[351932770,1738848647305,-500.0,0.00013972,2]
[351932771,1738848647317,-151.0,0.00013972,2]
[351932772,1738848647327,-500.0,0.00013972,2]
[351932773,1738848647338,-1444.43,0.00013972,2]
[351932774,1738848647348,-500.0,0.00013972,2]
[351932775,1738848647359,-500.0,0.00013972,2]
[351932776,1738848647368,-500.0,0.00013972,2]
[351932777,1738848647378,-826.98,0.00013972,2]
[351932778,1738848647389,-520.68859544,0.00013972,2]
[351932779,1738848647399,-629.59,0.00013972,2]
[351932780,1738848647410,-500.0,0.00013972,2]
[351932781,1738848647420,-500.0,0.00013972,2]
[351932782,1738848647430,-1196.19,0.00013972,2]
[351932783,1738848647440,-527.1,0.00013972,2]
[351932784,1738848647453,-500.0,0.00013972,2]
[351932785,1738848647464,-267.562872,0.00013972,2]
[351932786,1738848647475,-500.0,0.00013972,2]
[351932787,1738848647486,-505.96697996,0.00013972,2]
[351932788,1738848647497,-267.562872,0.00013972,2]
[351932789,1738848647508,-783.79,0.00013972,2]
[351932790,1738848647519,-183.847759,0.00013972,2]
[351932791,1738848647529,-183.847759,0.00013972,2]
[351932792,1738848647540,-153.484543,0.00013972,2]
[351932793,1738848647551,-500.0,0.00013972,2]
[351932794,1738848647562,-668.76,0.00013972,2]
[351932795,1738848647573,-151.74422,0.00013972,2]
[351932796,1738848647582,-151.0,0.00013972,2]
[351932797,1738848647593,-637.05,0.00013972,2]
[351932798,1738848647603,-151.0,0.00013972,2]
[351932799,1738848647614,-151.0,0.00013972,2]
[351932800,1738848647625,-3933.0,0.00013972,2]
[351932801,1738848647636,-1052.09,0.00013972,2]
[351932802,1738848647648,-14485.53,0.00013972,2]
[351932803,1738848647658,-1333.69,0.00013972,2]
[351932804,1738848647668,-500.0,0.00013972,2]
[351932805,1738848647679,-500.0,0.00013972,2]
[351932806,1738848647689,-500.0,0.00013972,2]
[351932807,1738848647708,-2005.53,0.00013972,2]
[351932808,1738848647719,-500.0,0.00013972,2]
[351932809,1738848647729,-3239.25,0.00013972,2]
[351932810,1738848647739,-500.0,0.00013972,2]
[351932811,1738848647749,-1367.75,0.00013972,2]
[351932812,1738848647760,-1082.67,0.00013972,2]
[351932813,1738848647771,-500.0,0.00013972,2]
[351932814,1738848647782,-500.0,0.00013972,2]
[351932815,1738848647792,-6597.32,0.00013972,2]
[351932816,1738848647802,-603.25,0.00013972,2]
[351932817,1738848647812,-500.0,0.00013972,2]
[351932818,1738848647822,-500.0,0.00013972,2]
[351932819,1738848647831,-1151.12,0.00013972,2]
[351932820,1738848647841,-584.1,0.00013972,2]
[351932821,1738848647852,-159.161552,0.00013972,2]
[351932822,1738848647863,-500.0,0.00013972,2]
[351932823,1738848647874,-500.0,0.00013972,2]
[351932824,1738848647884,-500.0,0.00013972,2]
[351932825,1738848647895,-500.0,0.00013972,2]
[351932826,1738848647905,-1412.29,0.00013972,2]
[351932827,1738848647915,-785.69,0.00013972,2]
[351932828,1738848647925,-500.0,0.00013972,2]
[351932829,1738848647936,-151.0,0.00013972,2]
[351932830,1738848647948,-500.0,0.00013972,2]
[351932831,1738848647964,-761.62,0.00013972,2]
[351932832,1738848647984,-151.0,0.00013972,2]
[351932833,1738848647998,-151.0,0.00013972,2]
[351932834,1738848648009,-44311.25,0.00013972,2]
[351932835,1738848648019,-151.0,0.00013972,2]
[351932836,1738848648029,-5853.13,0.00013972,2]
[351932837,1738848648039,-500.0,0.00013972,2]
[351932838,1738848648050,-4536.55,0.00013972,2]
[351932839,1738848648061,-500.0,0.00013972,2]
[351932840,1738848648071,-16899.97,0.00013972,2]
[351932841,1738848648081,-962.78,0.00013972,2]
[351932842,1738848648092,-151.0,0.00013972,2]
[351932843,1738848648102,-2412.53,0.00013972,2]
[351932844,1738848648112,-500.0,0.00013972,2]
[351932845,1738848648123,-2468.47,0.00013972,2]
[351932846,1738848648133,-165.925067,0.00013972,2]
[351932847,1738848648144,-500.0,0.00013972,2]
[351932848,1738848648154,-492.9554816,0.00013972,2]
[351932849,1738848648165,-151.0,0.00013972,2]
[351932850,1738848648175,-500.0,0.00013972,2]
[351932851,1738848648185,-2135.49,0.00013972,2]
[351932852,1738848648195,-1564.44,0.00013972,2]
[351932853,1738848648205,-1507.93,0.00013972,2]
[351932854,1738848648215,-500.0,0.00013972,2]
[351932855,1738848648227,-1357.54,0.00013972,2]
[351932856,1738848648240,-500.0,0.00013972,2]
[351932857,1738848648255,-526.45,0.00013972,2]
[351932858,1738848648266,-1755.26,0.00013972,2]
[351932859,1738848648278,-500.0,0.00013972,2]
[351932860,1738848648289,-500.0,0.00013972,2]
[351932861,1738848648300,-500.0,0.00013972,2]
[351932862,1738848648311,-955.32,0.00013972,2]
[351932863,1738848648321,-915.48,0.00013972,2]
[351932864,1738848648333,-151.0,0.00013972,2]
[351932865,1738848648343,-1785.26,0.00013972,2]
[351932866,1738848648354,-500.0,0.00013972,2]
[351932867,1738848648364,-151.0,0.00013972,2]
[351932868,1738848648374,-780.62,0.00013972,2]
[351932869,1738848648384,-500.0,0.00013972,2]
[351932870,1738848648395,-500.0,0.00013972,2]
[351932871,1738848648404,-500.0,0.00013972,2]
[351932872,1738848648415,-598.17,0.00013972,2]
[351932873,1738848648426,-703.94,0.00013972,2]
[351932874,1738848648435,-595.88,0.00013972,2]
[351932875,1738848648446,-500.0,0.00013972,2]
[351932876,1738848648456,-500.0,0.00013972,2]
[351932877,1738848648467,-500.0,0.00013972,2]
[351932878,1738848648477,-517.54206974,0.00013972,2]
[351932879,1738848648488,-500.0,0.00013972,2]
[351932880,1738848648498,-500.0,0.00013972,2]
[351932881,1738848648509,-1483.28,0.00013972,2]
[351932882,1738848648520,-500.0,0.00013972,2]
[351932883,1738848648530,-500.0,0.00013972,2]
[351932884,1738848648541,-151.0,0.00013972,2]
[351932885,1738848648551,-214.61767,0.00013972,2]
[351932886,1738848648562,-3288.75,0.00013972,2]
[351932887,1738848648573,-500.0,0.00013972,2]
[351932888,1738848648583,-214.61767,0.00013972,2]
[351932889,1738848648594,-500.0,0.00013972,2]
[351932890,1738848648605,-500.0,0.00013972,2]
[351932891,1738848648615,-4183.41,0.00013972,2]
[351932892,1738848648625,-500.0,0.00013972,2]
[351932893,1738848648635,-9267.35,0.00013972,2]
[351932894,1738848648646,-3605.2,0.00013972,2]
[351932895,1738848648656,-925.52,0.00013972,2]
[351932896,1738848648667,-2160.78,0.00013972,2]
[351932897,1738848648677,-500.0,0.00013972,2]
[351932898,1738848648688,-1731.7,0.00013972,2]
[351932899,1738848648700,-863.363704,0.00013972,2]
[351932900,1738848648710,-500.0,0.00013972,2]
[351932901,1738848648724,-875.81,0.00013972,2]
[351932902,1738848648741,-863.363704,0.00013972,2]
[351932903,1738848648757,-500.0,0.00013972,2]
[351932904,1738848648775,-500.0,0.00013972,2]
[351932905,1738848648788,-1410.06,0.00013972,2]
[351932906,1738848648801,-151.0,0.00013972,2]
[351932907,1738848648818,-500.0,0.00013972,2]
[351932908,1738848648834,-1858.52,0.00013972,2]
[351932909,1738848648849,-151.0,0.00013972,2]
[351932910,1738848648864,-893.35,0.00013972,2]
[351932911,1738848648877,-500.0,0.00013972,2]
[351932912,1738848648896,-500.0,0.00013972,2]
[351932913,1738848648910,-500.0,0.00013972,2]
[351932914,1738848648924,-500.0,0.00013972,2]
[351932915,1738848648935,-3474.32,0.00013972,2]
[351932916,1738848648952,-594.73,0.00013972,2]
[351932917,1738848648964,-788.11,0.00013972,2]
[351932918,1738848648980,-1523.6,0.00013972,2]
[351932919,1738848648996,-500.0,0.00013972,2]
[351932920,1738848649008,-500.0,0.00013972,2]
[351932921,1738848649021,-400.0,0.00013973,2]
[351932922,1738848649032,-470.22864969,0.00014,2]
[351932923,1738848649044,-153.0,0.00014,2]
[351932924,1738848649055,-1000.0,0.00014,14]
[351932925,1738848649069,-1000.0,0.00014,5]
[351932926,1738848649082,-4686.0,0.00014,2]
[351932927,1738848649096,-160.0,0.00014004,3]
[351932928,1738848649109,-189.04637734,0.00014009,2]
[351932929,1738848649123,-1000.0,0.00014041,2]
[351932930,1738848649137,-1000.0,0.00014054,2]
[351932931,1738848649151,-151.0,0.000141,2]
[351932932,1738848649162,-151.0,0.000141,2]
[351932933,1738848649172,-2277.96,0.000141,2]
[351932934,1738848649183,-2111.9383577,0.00014103,2]
[351932935,1738848649194,-303.686,0.00014107,2]
[351932936,1738848649208,-1000.0,0.00014108,2]
[351932937,1738848649222,-637.3817515,0.00014109,2]
[351932938,1738848649237,-500.0,0.00014109,2]
[351932939,1738848649249,-500.0,0.00014109,2]
[351932940,1738848649261,-327.28588589,0.00014109,2]
[351932941,1738848649272,-500.0,0.00014109,2]
[351932942,1738848649287,-500.0,0.00014109,2]
[351932943,1738848649298,-151.0,0.00014109,2]
[351932944,1738848649309,-500.0,0.00014109,2]
[351932945,1738848649320,-713.76,0.00014109,2]
[351932946,1738848649333,-151.0,0.00014109,2]
[351932947,1738848649345,-500.0,0.00014109,2]
[351932948,1738848649356,-500.0,0.00014109,2]
[351932949,1738848649368,-500.0,0.00014109,2]
[351932950,1738848649379,-636.61,0.00014109,2]
[351932951,1738848649391,-500.0,0.00014109,2]
[351932952,1738848649403,-866.78,0.00014109,2]
[351932953,1738848649415,-772.05,0.00014109,2]
[351932954,1738848649428,-151.0,0.00014109,2]
[351932955,1738848649439,-500.0,0.00014109,2]
[351932956,1738848649453,-500.0,0.00014109,2]
[351932957,1738848649466,-167.889512,0.00014109,2]
[351932958,1738848649479,-724.88,0.00014109,2]
[351932959,1738848649491,-500.0,0.00014109,2]
[351932960,1738848649502,-514.68,0.00014109,2]
[351932961,1738848649514,-1524.57,0.00014109,2]
[351932962,1738848649527,-500.0,0.00014109,2]
[351932963,1738848649539,-500.0,0.00014109,2]
[351932964,1738848649551,-1631.04,0.00014109,2]
[351932965,1738848649564,-500.0,0.00014109,2]
[351932966,1738848649577,-500.0,0.00014109,2]
[351932967,1738848649590,-151.0,0.00014109,2]
[351932968,1738848649602,-151.0,0.00014109,2]
[351932969,1738848649615,-151.0,0.00014109,2]
[351932970,1738848649627,-377.10615268,0.00014109,2]
[351932971,1738848649640,-592.3,0.00014109,2]
[351932972,1738848649652,-764.5,0.00014109,2]
[351932973,1738848649665,-500.0,0.00014109,2]
[351932974,1738848649678,-151.0,0.00014109,2]
[351932975,1738848649690,-151.0,0.00014109,2]
[351932976,1738848649709,-1305.69,0.00014109,2]
[351932977,1738848649723,-151.0,0.00014109,2]
[351932978,1738848649738,-151.0,0.00014109,2]
[351932979,1738848649750,-500.0,0.00014109,2]
[351932980,1738848649765,-500.0,0.00014109,2]
[351932981,1738848649777,-1131.9,0.00014109,2]
[351932982,1738848649791,-151.0,0.00014109,2]
[351932983,1738848649804,-500.0,0.00014109,2]
[351932984,1738848649817,-424.45,0.00014109,2]
[351932985,1738848649829,-500.0,0.00014109,2]
[351932986,1738848649842,-500.0,0.00014109,2]
[351932987,1738848649855,-1444.43,0.00014109,2]
[351932988,1738848649868,-500.0,0.00014109,2]
[351932989,1738848649881,-500.0,0.00014109,2]
[351932990,1738848649893,-826.98,0.00014109,2]
[351932991,1738848649906,-629.59,0.00014109,2]
[351932992,1738848649919,-500.0,0.00014109,2]
[351932993,1738848649930,-1196.19,0.00014109,2]
[351932994,1738848649942,-500.0,0.00014109,2]
[351932995,1738848649959,-267.562872,0.00014109,2]
[351932996,1738848649971,-500.0,0.00014109,2]
[351932997,1738848649983,-267.562872,0.00014109,2]
[351932998,1738848649995,-783.79,0.00014109,2]
[351932999,1738848650007,-183.847759,0.00014109,2]
[351933000,1738848650019,-183.847759,0.00014109,2]
[351933001,1738848650032,-473.11195959,0.00014109,2]
[351933002,1738848650044,-668.76,0.00014109,2]
[351933003,1738848650055,-151.0,0.00014109,2]
[351933004,1738848650067,-637.05,0.00014109,2]
[351933005,1738848650079,-151.0,0.00014109,2]
[351933006,1738848650091,-154.064207,0.00014109,2]
[351933007,1738848650102,-3933.0,0.00014109,2]
[351933008,1738848650114,-1052.09,0.00014109,2]
[351933009,1738848650125,-14485.53,0.00014109,2]
[351933010,1738848650137,-1333.69,0.00014109,2]
[351933011,1738848650149,-441.5,0.00014109,2]
[351933012,1738848650160,-2005.53,0.00014109,2]
[351933013,1738848650171,-3239.25,0.00014109,2]
[351933014,1738848650182,-500.0,0.00014109,2]
[351933015,1738848650194,-1367.75,0.00014109,2]
[351933016,1738848650214,-1082.67,0.00014109,2]
[351933017,1738848650226,-500.0,0.00014109,2]
[351933018,1738848650240,-6597.32,0.00014109,2]
[351933019,1738848650254,-603.25,0.00014109,2]
[351933020,1738848650267,-500.0,0.00014109,2]
[351933021,1738848650280,-176.91,0.00014109,2]
[351933022,1738848650292,-1151.12,0.00014109,2]
[351933023,1738848650305,-584.1,0.00014109,2]
[351933024,1738848650316,-500.0,0.00014109,2]
[351933025,1738848650328,-585.26779649,0.00014109,2]
[351933026,1738848650341,-1412.29,0.00014109,2]
[351933027,1738848650352,-785.69,0.00014109,2]
[351933028,1738848650363,-151.0,0.00014109,2]
[351933029,1738848650375,-401.4927269,0.00014109,2]
[351933030,1738848650386,-761.62,0.00014109,2]
[351933031,1738848650397,-151.0,0.00014109,2]
[351933032,1738848650408,-44311.25,0.00014109,2]
[351933033,1738848650419,-151.0,0.00014109,2]
[351933034,1738848650431,-5853.13,0.00014109,2]
[351933035,1738848650442,-500.0,0.00014109,2]
[351933036,1738848650457,-4536.55,0.00014109,2]
[351933037,1738848650469,-500.0,0.00014109,2]
[351933038,1738848650481,-16899.97,0.00014109,2]
[351933039,1738848650492,-962.78,0.00014109,2]
[351933040,1738848650501,-151.0,0.00014109,2]
[351933041,1738848650511,-2412.53,0.00014109,2]
[351933042,1738848650521,-500.0,0.00014109,2]
[351933043,1738848650531,-2468.47,0.00014109,2]
[351933044,1738848650748,-500.0,0.00014109,2]
[351933045,1738848650767,-151.0,0.00014109,2]
[351933046,1738848650779,-2135.49,0.00014109,2]
[351933047,1738848650788,-500.0,0.00014109,2]
[351933048,1738848650798,-1564.44,0.00014109,2]
[351933049,1738848650807,-1507.93,0.00014109,2]
[351933050,1738848650817,-500.0,0.00014109,2]
[351933051,1738848650826,-1357.54,0.00014109,2]
[351933052,1738848650836,-500.0,0.00014109,2]
[351933053,1738848650845,-1755.26,0.00014109,2]
[351933054,1738848650854,-500.0,0.00014109,2]
[351933055,1738848650863,-500.0,0.00014109,2]
[351933056,1738848650873,-500.0,0.00014109,2]
[351933057,1738848650882,-955.32,0.00014109,2]
[351933058,1738848650892,-915.48,0.00014109,2]
[351933059,1738848650901,-206.959826,0.00014109,2]
[351933060,1738848650910,-1785.26,0.00014109,2]
[351933061,1738848650920,-500.0,0.00014109,2]
[351933062,1738848650929,-151.0,0.00014109,2]
[351933063,1738848650939,-780.62,0.00014109,2]
[351933064,1738848650951,-500.0,0.00014109,2]
[351933065,1738848650961,-500.0,0.00014109,2]
[351933066,1738848650970,-500.0,0.00014109,2]
[351933067,1738848650979,-598.17,0.00014109,2]
[351933068,1738848650989,-703.94,0.00014109,2]
[351933069,1738848650998,-500.0,0.00014109,2]
[351933070,1738848651007,-500.0,0.00014109,2]
[351933071,1738848651017,-500.0,0.00014109,2]
[351933072,1738848651026,-500.0,0.00014109,2]
[351933073,1738848651035,-1483.28,0.00014109,2]
[351933074,1738848651044,-500.0,0.00014109,2]
[351933075,1738848651054,-151.0,0.00014109,2]
[351933076,1738848651063,-214.61767,0.00014109,2]
[351933077,1738848651072,-3288.75,0.00014109,2]
[351933078,1738848651081,-214.61767,0.00014109,2]
[351933079,1738848651091,-4183.41,0.00014109,2]
[351933080,1738848651100,-9267.35,0.00014109,2]
[351933081,1738848651109,-3605.2,0.00014109,2]
[351933082,1738848651118,-925.52,0.00014109,2]
[351933083,1738848651127,-2160.78,0.00014109,2]
[351933084,1738848651136,-500.0,0.00014109,2]
[351933085,1738848651146,-1731.7,0.00014109,2]
[351933086,1738848651155,-863.363704,0.00014109,2]
[351933087,1738848651165,-875.81,0.00014109,2]
[351933088,1738848651174,-863.363704,0.00014109,2]
[351933089,1738848651183,-500.0,0.00014109,2]
[351933090,1738848651193,-500.0,0.00014109,2]
[351933091,1738848651205,-1410.06,0.00014109,2]
[351933092,1738848651214,-1858.52,0.00014109,2]
[351933093,1738848651223,-893.35,0.00014109,2]
[351933094,1738848651234,-500.0,0.00014109,2]
[351933095,1738848651247,-500.0,0.00014109,2]
[351933096,1738848651257,-500.0,0.00014109,2]
[351933097,1738848651267,-3474.32,0.00014109,2]
[351933098,1738848651276,-594.73,0.00014109,2]
[351933099,1738848651286,-788.11,0.00014109,2]
[351933100,1738848651296,-1523.6,0.00014109,2]
[351933101,1738848651305,-586.70871007,0.00014109,2]
[351933102,1738848651314,-1000.0,0.00014112,2]
[351933103,1738848651324,-1000.0,0.00014112,2]
[351933104,1738848651336,-1000.0,0.00014113,2]
[351933105,1738848651345,-192.0,0.0001414,2]
[351933106,1738848651355,-2072.28527919,0.00014146,2]
[351933107,1738848651364,-218.59072856,0.00014148,2]
[351933108,1738848651374,-1000.0,0.00014148,2]
[351933109,1738848651383,-1000.0,0.0001416,2]
[351933110,1738848651392,-153.0,0.00014167,2]
[351933111,1738848651402,-153.0,0.00014167,2]
[351933112,1738848651411,-153.0,0.00014167,2]
[351933113,1738848651422,-153.0,0.00014167,2]
[351933114,1738848651431,-240.86,0.00014167,2]
[351933115,1738848651441,-158.61,0.00014167,2]
[351933116,1738848651453,-151.0,0.0001417,2]
[351933117,1738848651462,-154.0,0.00014175,2]
[351933118,1738848651471,-154.0,0.00014175,2]
[351933119,1738848651481,-154.0,0.00014175,2]
[351933120,1738848651490,-154.0,0.00014175,2]
[351933121,1738848651499,-154.0,0.00014175,2]
[351933122,1738848651509,-154.0,0.00014175,2]
[351933123,1738848651518,-154.0,0.00014175,2]
[351933124,1738848651528,-154.0,0.00014175,2]
[351933125,1738848651537,-154.0,0.00014175,2]
[351933126,1738848651546,-154.0,0.00014175,2]
[351933127,1738848651555,-154.0,0.00014175,2]
[351933128,1738848651564,-154.0,0.00014175,2]
[351933129,1738848651574,-154.0,0.00014175,2]
[351933130,1738848651583,-154.0,0.00014175,2]
[351933131,1738848651593,-166.59,0.00014175,2]
[351933132,1738848651602,-156.0,0.00014175,2]
[351933133,1738848651611,-156.0,0.00014175,2]
[351933134,1738848651621,-156.0,0.00014175,2]
[351933135,1738848651630,-156.0,0.00014175,2]
[351933136,1738848651639,-156.0,0.00014175,2]
[351933137,1738848651648,-157.89,0.00014175,2]
[351933138,1738848651657,-1000.0,0.00014183,2]
[351933139,1738848651667,-1000.0,0.00014199,2]
[351933140,1738848651676,-2766.27975644,0.000142,2]
[351933141,1738848651686,-696.0,0.000142,5]
[351933142,1738848651695,-151.0,0.000142,2]
[351933143,1738848651708,-1000.0,0.00014216,2]
[351933144,1738848651718,-153.0,0.00014241,2]
[351933145,1738848651727,-1151.35426422,0.00014245,2]
[351933146,1738848651736,-223.86837158,0.00014245,2]
[351933147,1738848651745,-500.0,0.00014246,2]
[351933148,1738848651754,-500.0,0.00014246,2]
[351933149,1738848651764,-500.0,0.00014246,2]
[351933150,1738848651773,-500.0,0.00014246,2]
[351933151,1738848651782,-510.84903862,0.00014246,2]
[351933152,1738848651792,-500.0,0.00014246,2]
[351933153,1738848651801,-154.725864,0.00014246,2]
[351933154,1738848651811,-500.0,0.00014246,2]
[351933155,1738848651820,-500.0,0.00014246,2]
[351933156,1738848651829,-151.0,0.00014246,2]
[351933157,1738848651838,-500.0,0.00014246,2]
[351933158,1738848651847,-713.76,0.00014246,2]
[351933159,1738848651856,-500.0,0.00014246,2]
[351933160,1738848651865,-500.0,0.00014246,2]
[351933161,1738848651875,-636.61,0.00014246,2]
[351933162,1738848651884,-866.78,0.00014246,2]
[351933163,1738848651893,-772.05,0.00014246,2]
[351933164,1738848651902,-239.01051,0.00014246,2]
[351933165,1738848651912,-500.0,0.00014246,2]
[351933166,1738848651921,-500.0,0.00014246,2]
[351933167,1738848651931,-724.88,0.00014246,2]
[351933168,1738848651940,-514.68,0.00014246,2]
[351933169,1738848651953,-1524.57,0.00014246,2]
[351933170,1738848651963,-500.0,0.00014246,2]
[351933171,1738848651972,-500.0,0.00014246,2]
[351933172,1738848651982,-1631.04,0.00014246,2]
[351933173,1738848651992,-376.26,0.00014246,2]
[351933174,1738848652002,-500.0,0.00014246,2]
[351933175,1738848652012,-151.0,0.00014246,2]
[351933176,1738848652022,-592.3,0.00014246,2]
[351933177,1738848652032,-764.5,0.00014246,2]
[351933178,1738848652043,-500.0,0.00014246,2]
[351933179,1738848652052,-151.0,0.00014246,2]
[351933180,1738848652062,-1305.69,0.00014246,2]
[351933181,1738848652071,-151.0,0.00014246,2]
[351933182,1738848652081,-500.0,0.00014246,2]
[351933183,1738848652090,-500.0,0.00014246,2]
[351933184,1738848652100,-1131.9,0.00014246,2]
[351933185,1738848652109,-151.0,0.00014246,2]
[351933186,1738848652119,-500.0,0.00014246,2]
[351933187,1738848652128,-500.0,0.00014246,2]
[351933188,1738848652137,-500.0,0.00014246,2]
[351933189,1738848652146,-1444.43,0.00014246,2]
[351933190,1738848652156,-500.0,0.00014246,2]
[351933191,1738848652165,-500.0,0.00014246,2]
[351933192,1738848652175,-826.98,0.00014246,2]
[351933193,1738848652185,-629.59,0.00014246,2]
[351933194,1738848652194,-500.0,0.00014246,2]
[351933195,1738848652208,-158.857315,0.00014246,2]
[351933196,1738848652218,-1196.19,0.00014246,2]